bitfinex-derivatives/quotes_BNBF0:USTF0_20250302
["timestamp","ask_amount","ask_price","bid_price","bid_amount"]
[1740914794206,1.13401096,608.12,607.53,3.32620185]
[1740914794606,1.13401096,608.11,607.53,3.32620185]
[1740914795204,1.13401096,608.1,607.53,3.32620185]
[1740914795708,1.13401096,608.09,607.53,3.32620185]
[1740914796207,1.13401096,608.08,607.53,3.32620185]
[1740914796907,1.13401096,608.07,607.53,3.32620185]
[1740914797308,1.13401096,608.06,607.53,3.32620185]
[1740914797704,1.13401096,608.05,607.53,3.32620185]
[1740914798304,1.13401096,608.04,607.53,3.32620185]
[1740914798706,1.13401096,608.03,607.53,3.32620185]
[1740914799403,1.13401096,608.02,607.53,4.90620185]
[1740914799804,1.13401096,608.01,607.53,4.90620185]
[1740914800214,1.13401096,608.0,607.53,4.90620185]
[1740914801011,1.13401096,607.99,607.53,4.90620185]
[1740914801705,1.13401096,607.98,607.53,4.90620185]
[1740914802106,1.13401096,607.97,607.53,4.90620185]
[1740914802713,1.13401096,607.96,607.53,4.90620185]
[1740914802910,1.13401096,607.95,607.53,4.90620185]
[1740914803512,1.13401096,607.94,607.53,4.90620185]
[1740914804313,1.13401096,607.93,607.53,4.90620185]
[1740914805218,1.13401096,607.92,607.53,4.90620185]
[1740914805719,1.13401096,607.91,607.53,4.90620185]
[1740914805919,1.13401096,607.9,607.53,4.90620185]
[1740914806222,1.71798121,608.0,607.53,4.90620185]
[1740914806820,1.13294998,607.99,607.53,4.90620185]
[1740914807018,1.43246978,607.98,607.53,4.90620185]
[1740914807220,2.56541976,607.97,607.53,4.90620185]
[1740914807417,1.43246978,607.96,607.53,4.90620185]
[1740914807619,1.13294998,607.97,607.53,4.90620185]
[1740914807818,1.43228782,607.96,607.53,4.90620185]
[1740914808014,1.13294998,607.96,607.53,4.90620185]
[1740914808420,1.13294998,607.95,607.53,4.90620185]
[1740914808922,1.71798121,608.0,607.53,4.90620185]
[1740914808923,1.13294998,607.94,607.53,4.90620185]
[1740914809924,1.13294998,607.93,607.53,4.90620185]
[1740914810520,1.13294998,607.92,607.53,4.90620185]
[1740914810924,1.13294998,607.91,607.53,4.90620185]
[1740914811726,1.13294998,607.9,607.53,4.90620185]
[1740914812428,1.13294998,607.89,607.53,4.90620185]
[1740914813423,3.03580479,608.08,607.53,4.90620185]
[1740914813625,1.43235547,608.07,607.53,4.90620185]
[1740914813921,1.43235547,608.06,607.53,4.90620185]
[1740914814126,1.43235547,608.05,607.53,4.90620185]
[1740914814327,1.43235547,608.04,607.53,4.90620185]
[1740914814531,1.43235547,608.03,607.53,4.90620185]
[1740914814723,1.43235547,608.02,607.53,4.90620185]
[1740914814921,1.43235547,608.01,607.53,4.90620185]
[1740914815120,1.43235547,608.0,607.53,4.90620185]
[1740914815320,1.13281021,608.04,607.53,4.90620185]
[1740914815521,1.13281021,607.99,607.53,4.90620185]
[1740914816427,1.13281021,607.98,607.53,4.90620185]
[1740914816630,1.13281021,607.97,607.53,4.90620185]
[1740914817326,1.43227374,608.11,607.53,4.90620185]
[1740914817530,1.7177904,608.15,607.53,4.90620185]
[1740914817531,1.43227374,608.1,607.53,4.90620185]
[1740914817732,1.43227374,608.09,607.53,4.90620185]
[1740914818030,1.1327419,608.1,607.53,4.90620185]
[1740914818433,1.1327419,608.09,607.53,4.90620185]
[1740914819531,1.1327419,608.08,607.53,4.90620185]
[1740914820428,1.1327419,608.07,607.53,4.90620185]
[1740914820834,1.1327419,608.06,607.53,4.90620185]
[1740914821226,1.1327419,608.05,607.53,4.90620185]
[1740914821729,1.1327419,608.04,607.53,4.90620185]
[1740914822329,1.1327419,608.03,607.53,4.90620185]
[1740914822732,1.1327419,608.02,607.53,4.90620185]
[1740914823332,1.1327419,608.01,607.53,4.90620185]
[1740914823928,1.1327419,608.0,607.53,4.90620185]
[1740914824335,1.1327419,607.99,607.53,4.90620185]
[1740914824929,1.1327419,607.98,607.53,4.90620185]
[1740914825634,1.1327419,607.97,607.53,4.90620185]
[1740914825832,1.43270386,608.1,607.53,4.90620185]
[1740914826034,1.43270386,608.09,607.53,4.90620185]
[1740914826234,2.56581784,608.08,607.53,4.90620185]
[1740914826429,1.43270386,608.07,607.53,4.90620185]
[1740914826627,1.13311398,608.08,607.53,4.90620185]
[1740914826829,2.56605683,608.07,607.53,4.90620185]
[1740914827033,1.13311398,608.07,607.53,4.90620185]
[1740914827332,1.13311398,608.06,607.53,4.90620185]
[1740914827932,1.13311398,608.05,607.53,4.90620185]
[1740914828533,1.13311398,608.04,607.53,4.90620185]
[1740914829529,1.13311398,608.03,607.53,4.90620185]
[1740914830132,1.13311398,608.02,607.53,4.90620185]
[1740914830934,1.13311398,608.01,607.53,4.90620185]
[1740914831935,1.13311398,608.0,607.53,4.90620185]
[1740914832435,1.13311398,607.99,607.53,4.90620185]
[1740914832835,1.13311398,607.98,607.53,4.90620185]
[1740914833538,1.13311398,607.97,607.53,4.90620185]
[1740914834035,1.13311398,607.96,607.53,4.90620185]
[1740914834631,1.43270633,608.06,607.53,4.90620185]
[1740914834835,1.71786107,608.07,607.53,4.90620185]
[1740914835032,1.43270027,608.06,607.53,4.90620185]
[1740914835237,1.43259764,608.05,607.53,4.90620185]
[1740914835431,1.43259764,608.04,607.53,4.90620185]
[1740914835637,1.43261578,608.03,607.53,4.90620185]
[1740914835835,1.13295335,608.03,607.53,4.90620185]
[1740914836130,1.13295335,608.02,607.53,4.90620185]
[1740914836730,1.13295335,608.01,607.53,4.90620185]
[1740914837232,1.13295335,608.0,607.53,4.90620185]
[1740914837829,1.7178328,608.07,607.53,4.90620185]
[1740914837830,1.13295335,607.99,607.53,4.90620185]
[1740914838432,1.13295335,607.98,607.53,4.90620185]
[1740914839335,1.13295335,607.97,607.53,4.90620185]
[1740914840237,1.13295335,607.96,607.53,4.90620185]
[1740914840936,1.13295335,607.95,607.53,4.90620185]
[1740914841532,1.13295335,607.94,607.53,4.90620185]
[1740914842236,1.13295335,607.93,607.53,4.90620185]
[1740914843139,1.13295335,607.92,607.53,4.90620185]
[1740914843737,1.13295335,607.91,607.53,4.90620185]
[1740914844337,1.13295335,607.9,607.53,4.90620185]
[1740914845039,1.43316241,608.05,607.53,4.90620185]
[1740914845239,1.43316241,608.04,607.53,4.90620185]
[1740914845539,1.43316241,608.03,607.53,4.90620185]
[1740914845740,1.43316241,608.02,607.53,4.90620185]
[1740914846134,1.43316241,608.01,607.53,4.90620185]
[1740914846337,1.60432286,608.06,607.53,4.90620185]
[1740914846536,1.71781867,608.07,607.53,4.90620185]
[1740914846938,1.4331885,608.06,607.53,4.90620185]
[1740914847139,1.4331885,608.05,607.53,4.90620185]
[1740914847339,2.56666951,608.04,607.53,4.90620185]
[1740914847539,1.4331885,608.03,607.53,4.90620185]
[1740914847742,1.4331885,608.02,607.53,4.90620185]
[1740914847943,1.4331885,608.01,607.53,4.90620185]
[1740914848138,1.13348101,608.02,607.53,4.90620185]
[1740914848343,1.43329491,608.01,607.53,4.90620185]
[1740914848542,1.13348101,608.02,607.53,4.90620185]
[1740914848743,1.43336788,608.01,607.53,4.90620185]
[1740914848944,1.13348101,608.02,607.53,4.90620185]
[1740914849244,1.13348101,608.0,607.53,4.90620185]
[1740914849838,1.13348101,607.99,607.53,4.90620185]
[1740914850441,1.13348101,607.98,607.53,4.90620185]
[1740914851046,1.13348101,607.97,607.53,4.90620185]
[1740914851651,1.13348101,607.96,607.53,4.90620185]
[1740914852451,1.13348101,607.95,607.53,4.90620185]
[1740914853251,1.43407469,608.07,607.53,4.90620185]
[1740914853444,1.6064047,608.18,607.53,4.90620185]
[1740914853649,3.04136743,608.17,607.53,4.90620185]
[1740914853852,3.04136743,608.16,607.53,4.90620185]
[1740914854051,1.43496273,608.15,607.53,4.90620185]
[1740914854352,1.43496273,608.14,607.53,4.90620185]
[1740914854546,1.43496273,608.13,607.53,4.90620185]
[1740914854752,1.13483354,608.13,607.53,4.90620185]
[1740914855153,1.13483354,608.12,607.53,4.90620185]
[1740914855555,1.13483354,608.11,607.53,4.90620185]
[1740914856551,1.13483354,608.1,607.53,4.90620185]
[1740914856949,1.13483354,608.09,607.53,4.90620185]
[1740914857354,1.71743011,608.31,607.53,4.90620185]
[1740914857550,1.4345321,608.3,607.53,4.90620185]
[1740914857754,1.4345321,608.29,607.53,4.90620185]
[1740914857955,1.4345321,608.28,607.53,4.90620185]
[1740914858156,2.56901845,608.27,607.53,4.90620185]
[1740914858356,1.4345321,608.26,607.53,4.90620185]
[1740914858556,1.4345321,608.25,607.53,4.90620185]
[1740914858857,1.4345321,608.24,607.53,4.90620185]
[1740914859053,1.4345321,608.23,607.53,4.90620185]
[1740914859254,1.4345321,608.22,607.53,4.90620185]
[1740914859452,2.56901845,608.21,607.53,4.90620185]
[1740914859658,1.13448635,608.21,607.53,4.90620185]
[1740914859857,1.43413225,608.2,607.53,4.90620185]
[1740914860057,1.13448635,608.19,607.53,4.90620185]
[1740914860454,1.13448635,608.18,607.53,4.90620185]
[1740914860855,1.43373832,608.17,607.53,4.90620185]
[1740914861057,1.43371581,608.16,607.53,4.90620185]
[1740914861250,1.13448635,608.17,607.53,4.90620185]
[1740914861753,1.71748661,608.23,607.53,4.90620185]
[1740914861754,1.13448635,608.16,607.53,4.90620185]
[1740914862157,1.13448635,608.15,607.53,4.90620185]
[1740914862556,1.13448635,608.14,607.53,4.90620185]
[1740914863358,1.13448635,608.13,607.53,4.90620185]
[1740914863858,1.13448635,608.12,607.53,4.90620185]
[1740914864654,1.13448635,608.11,607.53,4.90620185]
[1740914865158,1.13448635,608.1,607.53,4.90620185]
[1740914865559,1.13448635,608.09,607.53,4.90620185]
[1740914866161,1.13448635,608.08,607.53,4.90620185]
[1740914866760,1.13448635,608.07,607.53,4.90620185]
[1740914867163,1.13448635,608.06,607.53,4.90620185]
[1740914867556,1.13448635,608.05,607.53,4.90620185]
[1740914868463,1.13448635,608.04,607.53,4.90620185]
[1740914868660,1.13448635,608.03,607.53,4.90620185]
[1740914869259,3.03804261,608.26,607.53,4.90620185]
[1740914869562,1.7176279,608.27,607.53,4.90620185]
[1740914869563,1.43337446,608.25,607.53,4.90620185]
[1740914869762,1.43337446,608.24,607.53,4.90620185]
[1740914869963,1.43337446,608.23,607.53,4.90620185]
[1740914870164,1.13380316,608.22,607.53,4.90620185]
[1740914870863,1.13380316,608.21,607.53,4.90620185]
[1740914871661,1.13380316,608.2,607.53,4.90620185]
[1740914872260,1.13380316,608.19,607.53,4.90620185]
[1740914873068,1.13380316,608.18,607.53,4.90620185]
[1740914873467,1.13380316,608.17,607.53,4.90620185]
[1740914874067,1.13380316,608.16,607.53,4.90620185]
[1740914874469,1.13380316,608.15,607.53,4.90620185]
[1740914875369,1.13380316,608.14,607.53,4.90620185]
[1740914875865,1.13380316,608.13,607.53,4.90620185]
[1740914876466,1.13380316,608.12,607.53,4.90620185]
[1740914876769,1.13380316,608.11,607.53,4.90620185]
[1740914877470,1.43309649,608.25,607.53,4.90620185]
[1740914877672,1.71744423,608.28,607.53,4.90620185]
[1740914877972,1.43275887,608.27,607.53,4.90620185]
[1740914878173,1.43275887,608.26,607.53,4.90620185]
[1740914878372,1.13308373,608.27,607.53,4.90620185]
[1740914878573,1.43263227,608.26,607.53,4.90620185]
[1740914878770,1.13308373,608.27,607.53,4.90620185]
[1740914878975,1.13308373,608.25,607.53,4.90620185]
[1740914879373,1.13308373,608.24,607.53,4.90620185]
[1740914880370,2.56554245,608.23,607.53,4.90620185]
[1740914880569,1.13308373,608.23,607.53,4.90620185]
[1740914880970,1.13308373,608.22,607.53,4.90620185]
[1740914881373,1.13308373,608.21,607.53,4.90620185]
[1740914882479,1.13308373,608.2,607.53,4.90620185]
[1740914883277,1.13308373,608.19,607.53,4.90620185]
[1740914884071,1.13308373,608.18,607.53,4.90620185]
[1740914884978,1.13308373,608.17,607.53,4.90620185]
[1740914885477,1.13308373,608.16,607.53,4.90620185]
[1740914885981,1.13308373,608.15,607.53,4.90620185]
[1740914887079,1.13308373,608.14,607.53,4.90620185]
[1740914887680,1.13308373,608.13,607.53,4.90620185]
[1740914888479,1.13308373,608.12,607.53,4.90620185]
[1740914889077,1.4313516,608.26,607.53,4.90620185]
[1740914889281,1.4313516,608.25,607.53,4.90620185]
[1740914889483,1.4313516,608.24,607.53,4.90620185]
[1740914889784,1.13187083,608.24,607.53,4.90620185]
[1740914890181,2.5630997,608.23,607.53,4.90620185]
[1740914890381,1.13187083,608.23,607.53,4.90620185]
[1740914890883,1.13187083,608.22,607.53,4.90620185]
[1740914891080,1.13187083,608.21,607.53,4.90620185]
[1740914891985,1.13187083,608.2,607.53,4.90620185]
[1740914892681,1.13187083,608.19,607.53,4.90620185]
[1740914893083,1.13187083,608.18,607.53,4.90620185]
[1740914893586,1.13187083,608.17,607.53,4.90620185]
[1740914893883,3.03342541,608.4,607.53,4.90620185]
[1740914894082,1.43112115,608.39,607.53,4.90620185]
[1740914894282,1.43112115,608.38,607.53,4.90620185]
[1740914894489,1.43112115,608.37,607.53,4.90620185]
[1740914894684,1.43112115,608.36,607.53,4.90620185]
[1740914894892,1.43112115,608.35,607.53,4.90620185]
[1740914895091,1.43112115,608.34,607.53,4.90620185]
[1740914895284,1.43115227,608.35,607.53,4.90620185]
[1740914895485,1.13182583,608.34,607.53,4.90620185]
[1740914895990,1.13182583,608.33,607.53,4.90620185]
[1740914896384,1.13182583,608.32,607.53,4.90620185]
[1740914897392,1.13182583,608.31,607.53,4.90620185]
[1740914897788,1.13182583,608.3,607.53,4.90620185]
[1740914898194,1.13182583,608.29,607.53,4.90620185]
[1740914898495,1.43088342,608.42,607.53,4.90620185]
[1740914899194,1.13143814,608.41,607.53,4.90620185]
[1740914899996,1.13143814,608.4,607.53,4.90620185]
[1740914900394,1.13143814,608.39,607.53,4.90620185]
[1740914901190,1.13143814,608.38,607.53,4.90620185]
[1740914901600,1.13143814,608.37,607.53,4.90620185]
[1740914902396,1.13143814,608.36,607.53,4.90620185]
[1740914902595,1.13143814,608.35,607.53,4.90620185]
[1740914903096,1.13143814,608.34,607.53,4.90620185]
[1740914903998,1.13143814,608.33,607.53,4.90620185]
[1740914904499,1.13143814,608.32,607.53,4.90620185]
[1740914905293,1.13143814,608.31,607.53,4.90620185]
[1740914905698,1.13143814,608.3,607.53,4.90620185]
[1740914906199,1.71714763,608.41,607.53,4.90620185]
[1740914907099,1.13105048,608.4,607.53,4.90620185]
[1740914907298,2.56124607,608.4,607.53,4.90620185]
[1740914907799,1.13105048,608.39,607.53,4.90620185]
[1740914908400,2.56124607,608.38,607.53,4.90620185]
[1740914908700,1.13105048,608.38,607.53,4.90620185]
[1740914908900,1.43019559,608.37,607.53,4.90620185]
[1740914909102,1.13105048,608.36,607.53,4.90620185]
[1740914909495,1.13105048,608.35,607.53,4.90620185]
[1740914910099,1.13105048,608.34,607.53,4.90620185]
[1740914910697,1.13105048,608.33,607.53,4.90620185]
[1740914911701,1.71716175,608.37,607.53,4.90620185]
[1740914911702,1.13105048,608.32,607.53,4.90620185]
[1740914912302,1.13105048,608.31,607.53,4.90620185]
[1740914912902,1.13105048,608.3,607.53,4.90620185]
[1740914913205,1.13105048,608.29,607.53,4.90620185]
[1740914914099,1.13105048,608.28,607.53,4.90620185]
[1740914914699,1.13105048,608.27,607.53,4.90620185]
[1740914915405,1.13105048,608.26,607.53,4.90620185]
[1740914916001,1.13105048,608.25,607.53,4.90620185]
[1740914916608,1.13105048,608.24,607.53,4.90620185]
[1740914917508,1.13105048,608.23,607.53,4.90620185]
[1740914918302,1.13105048,608.22,607.53,4.90620185]
[1740914918910,1.13105048,608.21,607.53,4.90620185]
[1740914919512,1.13105048,608.2,607.53,4.90620185]
[1740914920005,1.43204524,608.34,607.53,4.90620185]
[1740914920208,1.71726767,608.36,607.53,4.90620185]
[1740914920607,1.13251006,608.35,607.53,4.90620185]
[1740914921110,1.13251006,608.34,607.53,4.90620185]
[1740914921610,1.71718293,608.36,607.53,4.90620185]
[1740914921611,1.13251006,608.33,607.53,4.90620185]
[1740914922606,1.13251006,608.32,607.53,4.90620185]
[1740914923104,1.13251006,608.31,607.53,4.90620185]
[1740914923511,1.13251006,608.3,607.53,4.90620185]
[1740914924006,1.13251006,608.29,607.53,4.90620185]
[1740914924411,1.13251006,608.28,607.53,4.90620185]
[1740914924905,1.13251006,608.27,607.53,4.90620185]
[1740914925306,1.13251006,608.26,607.53,4.90620185]
[1740914925915,1.13251006,608.25,607.53,4.90620185]
[1740914926308,1.71718293,608.36,607.53,4.90620185]
[1740914926909,1.1329767,608.35,607.53,4.90620185]
[1740914927417,1.43235352,608.34,607.53,4.90620185]
[1740914927613,1.43235352,608.33,607.53,4.90620185]
[1740914927914,2.56533022,608.32,607.53,4.90620185]
[1740914928213,1.43235352,608.31,607.53,4.90620185]
[1740914928414,2.56533022,608.3,607.53,4.90620185]
[1740914928612,1.43235352,608.29,607.53,4.90620185]
[1740914928914,1.1329767,608.3,607.53,4.90620185]
[1740914929111,1.43295517,608.29,607.53,4.90620185]
[1740914929312,1.1329767,608.3,607.53,4.90620185]
[1740914929511,1.1329767,608.28,607.53,4.90620185]
[1740914930010,1.1329767,608.27,607.53,4.90620185]
[1740914930510,0.98144231,608.45,607.53,6.13715571]
[1740914930511,1.1329767,608.26,607.53,6.13715571]
[1740914931015,1.1329767,608.25,607.53,6.13715571]
[1740914932010,1.1329767,608.24,607.53,6.13715571]
[1740914933118,1.1329767,608.23,607.53,6.13715571]
[1740914933618,1.1329767,608.22,607.53,6.13715571]
[1740914934119,1.1329767,608.21,607.53,6.13715571]
[1740914934517,1.1329767,608.2,607.61,1.23095386]
[1740914934713,1.1329767,608.2,607.62,0.32915308]
[1740914935520,1.43334269,608.39,607.62,0.32915308]
[1740914935820,1.43334269,608.38,607.62,0.32915308]
[1740914936116,2.56712414,608.37,607.62,0.32915308]
[1740914936319,1.43334269,608.36,607.62,0.32915308]
[1740914936520,2.56712414,608.35,607.62,0.32915308]
[1740914936718,1.13378145,608.35,607.62,1.56010694]
[1740914937114,1.13378145,608.34,607.62,1.56010694]
[1740914937916,1.13378145,608.33,607.62,1.56010694]
[1740914938118,1.13378145,608.33,607.63,5.259]
[1740914938320,1.13378145,608.33,607.64,0.32914225]
[1740914938820,1.13378145,608.32,607.64,0.32914225]
[1740914939722,1.13378145,608.31,607.64,0.32914225]
[1740914940624,1.13378145,608.3,607.64,0.32914225]
[1740914941324,1.13378145,608.29,607.64,0.32914225]
[1740914941918,1.71694289,608.51,607.64,0.32914225]
[1740914942119,1.4339997,608.5,607.64,0.32914225]
[1740914942324,1.71694289,608.51,607.64,0.32914225]
[1740914942527,2.56785373,608.5,607.64,0.32914225]
[1740914942719,1.43382623,608.49,607.64,0.32914225]
[1740914942920,1.43382623,608.48,607.64,0.32914225]
[1740914943117,1.43382623,608.47,607.64,0.32914225]
[1740914943322,1.1340275,608.49,607.64,0.32914225]
[1740914943524,1.1340275,608.46,607.64,0.32914225]
[1740914943923,1.1340275,608.45,607.64,0.32914225]
[1740914944322,1.1340275,608.44,607.64,0.32914225]
[1740914945127,1.1340275,608.43,607.64,0.32914225]
[1740914945627,1.1340275,608.42,607.64,1.56009611]
[1740914945825,1.43319072,608.52,607.64,1.56009611]
[1740914945826,1.1340275,608.41,607.64,1.56009611]
[1740914946827,1.1340275,608.4,607.64,1.56009611]
[1740914947427,1.1340275,608.4,607.64,0.32914225]
[1740914947627,1.1340275,608.39,607.64,0.32914225]
[1740914948323,1.71680172,608.56,607.64,0.32914225]
[1740914948528,1.43264868,608.55,607.64,0.32914225]
[1740914948722,1.43264868,608.54,607.64,0.32914225]
[1740914948927,1.43264868,608.53,607.64,0.32914225]
[1740914949127,1.43264868,608.52,607.64,0.32914225]
[1740914949327,1.43264868,608.51,607.64,0.32914225]
[1740914949628,1.43264868,608.5,607.64,0.32914225]
[1740914949828,1.43264868,608.49,607.64,0.32914225]
[1740914950025,1.43264868,608.48,607.64,0.32914225]
[1740914950328,1.13298224,608.47,607.64,0.32914225]
[1740914950758,1.13298224,608.46,607.64,0.32914225]
[1740914951558,1.13298224,608.45,607.64,0.32914225]
[1740914952166,1.13298224,608.44,607.64,0.32914225]
[1740914952457,1.13298224,608.43,607.64,0.32914225]
[1740914953056,1.13298224,608.42,607.64,0.32914225]
[1740914953258,1.13298224,608.42,607.65,1.55]
[1740914953462,1.13298224,608.42,607.66,0.32913142]
[1740914954065,1.13298224,608.41,607.66,0.32913142]
[1740914954657,1.13298224,608.4,607.66,0.32913142]
[1740914955052,1.13298224,608.39,607.66,0.32913142]
[1740914955648,1.13298224,608.38,607.66,0.32913142]
[1740914956247,1.13298224,608.38,607.66,1.91213142]
[1740914956445,1.13298224,608.37,607.66,1.91213142]
[1740914957036,1.13298224,608.36,607.66,1.91213142]
[1740914957837,1.43269512,608.51,607.66,1.91213142]
[1740914958039,1.43269512,608.5,607.66,1.91213142]
[1740914958239,1.43269512,608.49,607.66,1.91213142]
[1740914958538,1.43269512,608.48,607.66,1.91213142]
[1740914958736,1.43269512,608.47,607.66,1.91213142]
[1740914958939,1.43269512,608.46,607.66,1.91213142]
[1740914959140,1.43269512,608.45,607.66,1.91213142]
[1740914959342,1.43269512,608.44,607.66,1.91213142]
[1740914959538,1.43269512,608.43,607.66,1.91213142]
[1740914959734,1.71676643,608.56,607.66,1.91213142]
[1740914959735,1.13293819,608.44,607.66,1.91213142]
[1740914959937,1.43259372,608.43,607.66,1.91213142]
[1740914960137,1.13293819,608.44,607.66,1.91213142]
[1740914960338,1.13293819,608.42,607.66,1.91213142]
[1740914960938,1.43242715,608.41,607.66,1.91213142]
[1740914961136,2.56536534,608.4,607.66,1.91213142]
[1740914961336,1.43223973,608.39,607.66,1.91213142]
[1740914961534,1.43223973,608.38,607.66,1.91213142]
[1740914961733,1.43223973,608.37,607.66,1.91213142]
[1740914961939,1.13293819,608.4,607.66,1.91213142]
[1740914961940,1.43223973,608.36,607.66,1.91213142]
[1740914962138,1.43223973,608.35,607.66,1.91213142]
[1740914962333,1.43223973,608.34,607.66,1.91213142]
[1740914962538,1.43223973,608.33,607.66,1.91213142]
[1740914962840,2.56517792,608.32,607.66,1.91213142]
[1740914963144,1.43223973,608.31,607.66,1.91213142]
[1740914963440,1.43206716,608.3,607.66,1.91213142]
[1740914963633,1.13293819,608.3,607.66,1.91213142]
[1740914964240,2.56493206,608.29,607.66,3.14313142]
[1740914964443,1.13293819,608.29,607.66,3.14313142]
[1740914964940,1.13293819,608.28,607.66,3.14313142]
[1740914965338,1.13293819,608.27,607.66,3.14313142]
[1740914966342,1.13293819,608.26,607.66,3.72213142]
[1740914966941,1.13293819,608.25,607.66,3.72213142]
[1740914968335,1.13293819,608.24,607.66,3.72213142]
[1740914968840,1.13293819,608.23,607.66,3.72213142]
[1740914969742,1.13293819,608.22,607.66,3.72213142]
[1740914970343,1.71716881,608.36,607.66,3.72213142]
[1740914971238,1.43159012,608.35,607.66,3.72213142]
[1740914971436,1.43159012,608.34,607.66,3.72213142]
[1740914971640,1.43159012,608.33,607.66,3.72213142]
[1740914971839,1.43159012,608.32,607.66,3.72213142]
[1740914972043,1.43159012,608.31,607.66,3.72213142]
[1740914972238,1.43159012,608.3,607.66,3.72213142]
[1740914972441,1.43159012,608.29,607.66,3.72213142]
[1740914972640,1.43159012,608.28,607.66,3.72213142]
[1740914972943,1.43159012,608.27,607.66,3.72213142]
[1740914973243,1.13216312,608.27,607.66,3.72213142]
[1740914973743,1.13216312,608.26,607.66,3.72213142]
[1740914974538,1.13216312,608.25,607.66,3.72213142]
[1740914975243,2.8495226,608.24,607.66,3.72213142]
[1740914976344,1.13216312,608.23,607.66,3.72213142]
[1740914977245,1.13216312,608.22,607.66,3.72213142]
[1740914977647,1.13216312,608.21,607.66,3.72213142]
[1740914978545,1.71716175,608.4,607.66,5.34013142]
[1740914979047,1.13160868,608.39,607.66,5.34013142]
[1740914979347,1.13160868,608.38,607.66,5.34013142]
[1740914980148,1.13160868,608.37,607.66,5.34013142]
[1740914980555,2.56250395,608.37,607.66,5.34013142]
[1740914980755,1.13160868,608.36,607.66,5.34013142]
[1740914981456,1.13160868,608.35,607.66,5.34013142]
[1740914982057,1.13160868,608.34,607.66,5.34013142]
[1740914982657,1.13160868,608.33,607.66,5.34013142]
[1740914983357,1.43089527,608.38,607.66,5.34013142]
[1740914983358,1.13160868,608.32,607.66,5.34013142]
[1740914983858,1.13160868,608.31,607.66,5.34013142]
[1740914984560,1.13160868,608.3,607.66,5.34013142]
[1740914985355,1.13160868,608.29,607.66,5.34013142]
[1740914985860,1.13160868,608.28,607.66,5.34013142]
[1740914986259,1.13160868,608.27,607.66,5.34013142]
[1740914987055,1.71702054,608.45,607.66,5.34013142]
[1740914987256,1.43100159,608.44,607.66,5.34013142]
[1740914987657,1.71702054,608.45,607.66,5.34013142]
[1740914987855,1.13174753,608.44,607.66,5.34013142]
[1740914988661,1.71702054,608.45,607.66,5.34013142]
[1740914988662,1.13174753,608.43,607.66,5.34013142]
[1740914989863,1.13174753,608.42,607.66,5.34013142]
[1740914990764,1.13174753,608.41,607.66,5.34013142]
[1740914991063,1.13174753,608.4,607.66,5.34013142]
[1740914991763,1.13174753,608.39,607.66,5.34013142]
[1740914992759,1.13174753,608.38,607.66,5.34013142]
[1740914993159,1.43100159,608.5,607.66,5.34013142]
[1740914993160,1.13174753,608.37,607.66,5.34013142]
[1740914993864,1.13174753,608.36,607.66,5.34013142]
[1740914994663,1.13174753,608.35,607.66,5.34013142]
[1740914995263,1.13174753,608.34,607.66,5.34013142]
[1740914996066,1.13174753,608.33,607.66,5.34013142]
[1740914996463,1.13174753,608.32,607.66,5.34013142]
[1740914997166,1.13174753,608.31,607.66,5.34013142]
[1740914997866,1.13174753,608.3,607.66,5.34013142]
[1740914998366,1.13174753,608.29,607.66,5.34013142]
[1740914999066,1.13174753,608.28,607.66,5.34013142]
[1740914999668,1.13174753,608.27,607.66,5.34013142]
[1740915000163,1.13174753,608.26,607.66,5.34013142]
[1740915000768,1.13174753,608.25,607.66,5.34013142]
[1740915001167,1.13174753,608.24,607.66,5.34013142]
[1740915001563,1.13174753,608.23,607.66,5.34013142]
[1740915002762,1.13174753,608.22,607.66,5.34013142]
[1740915003563,1.13174753,608.21,607.66,5.34013142]
[1740915004265,1.13174753,608.2,607.66,5.34013142]
[1740915004868,1.13174753,608.19,607.66,5.34013142]
[1740915005472,1.7173736,608.24,607.66,5.34013142]
[1740915006067,1.13157549,608.23,607.66,5.34013142]
[1740915006873,1.13157549,608.22,607.66,5.34013142]
[1740915007673,1.13157549,608.21,607.66,5.34013142]
[1740915008371,1.13157549,608.2,607.66,5.34013142]
[1740915008972,1.13157549,608.19,607.66,5.34013142]
[1740915009770,1.13157549,608.18,607.66,5.34013142]
[1740915010276,1.13157549,608.17,607.66,5.34013142]
[1740915010979,1.13157549,608.16,607.66,5.34013142]
[1740915011578,1.71738773,608.24,607.66,5.34013142]
[1740915012080,1.13211322,608.23,607.66,5.34013142]
[1740915012480,1.13211322,608.22,607.66,5.34013142]
[1740915013379,1.13211322,608.21,607.66,5.34013142]
[1740915013977,1.13211322,608.2,607.66,5.34013142]
[1740915014374,1.13211322,608.19,607.66,5.34013142]
[1740915014781,1.13211322,608.18,607.66,5.34013142]
[1740915015279,1.13211322,608.17,607.66,5.34013142]
[1740915015780,1.13211322,608.16,607.66,5.34013142]
[1740915016475,1.13211322,608.15,607.66,5.34013142]
[1740915017383,1.13211322,608.14,607.66,5.34013142]
[1740915018081,1.43193938,608.2,607.66,5.34013142]
[1740915018280,1.13245989,608.13,607.66,5.34013142]
[1740915018983,1.13245989,608.12,607.66,5.34013142]
[1740915019881,1.13245989,608.11,607.66,5.34013142]
[1740915020582,1.13245989,608.1,607.66,5.34013142]
[1740915021786,1.13245989,608.09,607.66,5.34013142]